[Event "Commonwealth Open 2019"]
[Site "Delhi"]
[Date "2019.07.03"]
[Round "5.2"]
[White "Debashis, Das"]
[Black "Saravana, Krishnan P."]
[Result "1-0"]
[ECO "D45"]
[WhiteElo "2544"]
[BlackElo "2290"]
[Annotator "ChessBase"]
[PlyCount "119"]
[EventDate "2019.06.30"]
[EventType "swiss"]
[EventCountry "IND"]
[SourceTitle "playchess.com"]
[Source "ChessBase"]
[SourceQuality "1"]
[TimeControl "5400+30"]

1. Nf3 {[%emt 0:00:00]} d5 {[%emt 0:01:09]} 2. c4 {[%emt 0:00:00]} e6 {[%emt 0:04:47]} 3. d4 {[%emt 0:00:00]} Nf6 {[%emt 0:00:39]} 4. Nc3 {[%emt 0:00:21]} c6 {[%emt 0:00:59]} 5. e3 {[%emt 0:00:44]} Nbd7 {[%emt 0:00:16]} 6. Qc2 {[%emt 0:00:39]} Bd6 {[%emt 0:00:32]} 7. Be2 {[%emt 0:00:27]} O-O {[%emt 0:01:32]} 8. O-O {[%emt 0:00:06]} dxc4 {[%emt 0:03:54]} 9. Bxc4 {[%emt 0:00:07]} e5 {[%emt 0:00:37]} 10. h3 {[%emt 0:00:38]} Qe7 {[%emt 0:01:04]} 11. Bd2 {[%emt 0:08:25]} e4 {[%emt 0:08:31]} 12. Ng5 {[%emt 0:00:52]} Nb6 {[%emt 0:00:08]} 13. Bb3 {[%emt 0:01:09]} Bf5 {[%emt 0:04:49]} 14. f3 {[%emt 0:03:04]} Rae8 {[%emt 0:11:53]} 15. fxe4 {[%emt 0:01:37]} Bg6 {[%emt 0:02:11]} 16. Qd1 {[%emt 0:04:17]} h6 {[%emt 0:04:07]} 17. e5 {[%emt 0:00:28]} hxg5 {[%emt 0:00:51]} 18. exf6 {[%emt 0:00:12]} gxf6 {[%emt 0:00:10]} 19. Qf3 {[%emt 0:02:17]} Nd7 {[%emt 0:03:03]} 20. Rae1 {[%emt 0:01:58]} Bc7 {[%emt 0:01:52]} 21. g4 {[%emt 0:27:59]} Qd6 {[%emt 0:02:17]} 22. Qg2 {[%emt 0:00:17]} a6 {[%emt 0:06:25]} 23. Bc1 {[%emt 0:08:54]} Kg7 {[%emt 0:03:10]} 24. Rf3 {[%emt 0:01:32]} Kg8 {[%emt 0:00:00]} 25. Rff1 {[%emt 0:00:00]} Kg7 {[%emt 0:01:00]} 26. Rf3 {[%emt 0:01:00]} Re7 {[%emt 0:07:28]} 27. Ne2 {[%emt 0:07:46]} c5 {[%emt 0:01:35]} 28. Rd1 {[%emt 0:00:23]} Qc6 {[%emt 0:04:14]} 29. d5 {[%emt 0:14:56]} Qd6 {[%emt 0:00:57]} 30. Rdf1 {[%emt 0:01:44]} b5 {[%emt 0:09:44]} 31. Ng3 {[%emt 0:00:18]} c4 {[%emt 0:01:22]} 32. Bc2 {[%emt 0:00:04]} Qxd5 {[%emt 0:00:20]} 33. Nf5+ {[%emt 0:00:14]} Bxf5 {[%emt 0:00:13]} 34. Rxf5 {[%emt 0:00:12]} Qxg2+ {[%emt 0:00:16]} 35. Kxg2 {[%emt 0:00:04]} Rfe8 {[%emt 0:00:46]} 36. h4 {[%emt 0:00:39]} gxh4 {[%emt 0:03:57]} 37. g5 {[%emt 0:00:04]} Re6 {[%emt 0:00:47]} 38. Kh3 {[%emt 0:00:37]} Bd8 {[%emt 0:00:51]} 39. Bd2 {[%emt 0:04:45]} Rg8 {[%emt 0:05:19]} 40. Rd5 {[%emt 0:01:55]} Ne5 {[%emt 0:01:00]} 41. Bc3 {[%emt 0:00:10]} Rge8 {[%emt 0:02:34]} 42. Bf5 {[%emt 0:00:38]} Rb6 {[%emt 0:01:13]} 43. Bd4 {[%emt 0:03:07]} Rb8 {[%emt 0:01:06]} 44. gxf6+ {[%emt 0:00:15]} Bxf6 {[%emt 0:00:16]} 45. Rd6 {[%emt 0:00:02]} Bg5 {[%emt 0:01:09]} 46. Rxa6 {[%emt 0:00:08]} f6 {[%emt 0:00:20]} 47. Ra7+ {[%emt 0:00:14]} Nf7 {[%emt 0:01:08]} 48. Rg1 {[%emt 0:00:30]} Kf8 {[%emt 0:00:10]} 49. Bg6 {[%emt 0:01:35]} Ne5 {[%emt 0:00:24]} 50. Bxe8 {[%emt 0:01:25]} Rxe8 {[%emt 0:00:18]} 51. Rf1 {[%emt 0:01:25]} Kg8 {[%emt 0:00:43]} 52. Rb7 {[%emt 0:00:11]} Nf7 {[%emt 0:00:29]} 53. Rxb5 {[%emt 0:00:25]} Re4 {[%emt 0:01:03]} 54. a4 {[%emt 0:01:32]} Bxe3 {[%emt 0:00:19]} 55. Bxe3 {[%emt 0:00:13]} Rxe3+ {[%emt 0:00:05]} 56. Kxh4 {[%emt 0:00:02]} Kg7 {[%emt 0:00:13]} 57. a5 {[%emt 0:00:03]} Kg6 {[%emt 0:00:37]} 58. a6 {[%emt 0:00:19]} Ng5 {[%emt 0:01:30]} 59. a7 {[%emt 0:00:14]} Re8 {[%emt 0:00:28]} 60. Rb8 {[%emt 0:00:32]} 1-0

[Event "Commonwealth Open 2019"]
[Site "Delhi"]
[Date "2019.07.03"]
[Round "5.3"]
[White "Narayanan.S.L"]
[Black "Divya, Deshmukh"]
[Result "1-0"]
[ECO "A05"]
[WhiteElo "2603"]
[BlackElo "2414"]
[Annotator "ChessBase"]
[PlyCount "69"]
[EventDate "2019.06.30"]
[EventType "swiss"]
[EventCountry "IND"]
[SourceTitle "playchess.com"]
[Source "ChessBase"]
[SourceQuality "1"]
[TimeControl "5400+30"]

1. Nf3 {[%emt 0:00:00]} Nf6 {[%emt 0:00:00]} 2. c4 {[%emt 0:00:00]} g6 {[%emt 0:00:00]} 3. Nc3 {[%emt 0:00:00]} d5 {[%emt 0:00:00]} 4. cxd5 {[%emt 0:00:00]} Nxd5 {[%emt 0:00:01]} 5. Qb3 {[%emt 0:00:12]} Nb6 {[%emt 0:00:58]} 6. d4 Bg7 {[%emt 0:00:16]} 7. Bf4 {[%emt 0:00:16]} O-O {[%emt 0:01:05]} 8. e3 {[%emt 0:00:40]} c6 {[%emt 0:02:56]} 9. Be2 {[%emt 0:01:25]} Be6 {[%emt 0:01:13]} 10. Qc2 {[%emt 0:00:47]} N8d7 {[%emt 0:00:22]} 11. O-O {[%emt 0:02:00]} Bg4 {[%emt 0:01:57]} 12. Rfd1 {[%emt 0:06:07]} Qc8 {[%emt 0:00:41]} 13. Bg3 {[%emt 0:02:52]} c5 {[%emt 0:14:09]} 14. Rac1 {[%emt 0:02:35]} cxd4 {[%emt 0:04:18]} 15. Nxd4 {[%emt 0:01:05]} Nf6 {[%emt 0:01:12]} 16. h3 {[%emt 0:12:49]} Bxe2 {[%emt 0:07:54]} 17. Qxe2 {[%emt 0:00:07]} Qc5 {[%emt 0:00:08]} 18. Qf3 {[%emt 0:05:32]} Nh5 {[%emt 0:12:11]} 19. Bh2 {[%emt 0:20:44]} e5 {[%emt 0:08:46]} 20. Ndb5 {[%emt 0:00:09]} Qe7 {[%emt 0:04:03]} 21. a4 {[%emt 0:01:02]} a5 {[%emt 0:07:48]} 22. Rd6 {[%emt 0:06:28]} Ra6 {[%emt 0:04:47]} 23. Rcd1 {[%emt 0:11:19]} Nc4 {[%emt 0:03:11]} 24. Rd7 {[%emt 0:00:11]} Qf6 {[%emt 0:00:09]} 25. Qxb7 {[%emt 0:01:35]} Re6 {[%emt 0:05:34]} 26. Nc7 {[%emt 0:03:21]} Rd6 {[%emt 0:03:50]} 27. N7d5 {[%emt 0:01:56]} Qe6 {[%emt 0:00:22]} 28. Rxd6 {[%emt 0:01:13]} Nxd6 {[%emt 0:00:03]} 29. Qe7 {[%emt 0:00:21]} Nc8 {[%emt 0:04:10]} 30. Qxe6 {[%emt 0:00:06]} fxe6 {[%emt 0:00:01]} 31. Nc7 {[%emt 0:00:09]} Kf7 {[%emt 0:00:15]} 32. Rd7+ {[%emt 0:00:52]} Ne7 {[%emt 0:00:09]} 33. Ne4 {[%emt 0:00:31]} Bf6 {[%emt 0:01:35]} 34. g4 {[%emt 0:00:21]} Ng7 {[%emt 0:00:07]} 35. g5 {[%emt 0:00:06]} 1-0

[Event "Commonwealth Open 2019"]
[Site "Delhi"]
[Date "2019.07.03"]
[Round "5.4"]
[White "Aravindh, Chithambaram Vr."]
[Black "Tania, Sachdev"]
[Result "1-0"]
[ECO "E36"]
[WhiteElo "2598"]
[BlackElo "2401"]
[Annotator "ChessBase"]
[PlyCount "98"]
[EventDate "2019.06.30"]
[EventType "swiss"]
[EventCountry "IND"]
[SourceTitle "playchess.com"]
[Source "ChessBase"]
[SourceQuality "1"]
[TimeControl "5400+30"]

1. d4 {[%emt 0:00:00]} Nf6 {[%emt 0:06:16]} 2. c4 {[%emt 0:00:00]} e6 {[%emt 0:00:29]} 3. Nc3 {[%emt 0:00:00]} Bb4 {[%emt 0:00:11]} 4. Qc2 {[%emt 0:00:07]} d5 {[%emt 0:00:58]} 5. a3 {[%emt 0:00:13]} Bxc3+ {[%emt 0:00:19]} 6. Qxc3 {[%emt 0:00:07]} dxc4 {[%emt 0:02:22]} 7. Qxc4 {[%emt 0:00:49]} b6 {[%emt 0:00:04]} 8. Bg5 {[%emt 0:01:45]} Ba6 {[%emt 0:01:03]} 9. Qc3 {[%emt 0:00:40]} O-O {[%emt 0:02:21]} 10. Nf3 {[%emt 0:00:06]} Nbd7 {[%emt 0:07:25]} 11. Ne5 {[%emt 0:01:03]} Bb7 {[%emt 0:09:43]} 12. Rd1 {[%emt 0:24:58]} Rc8 {[%emt 0:20:15]} 13. Qd2 {[%emt 0:02:23]} Nd5 {[%emt 0:00:05]} 14. Bh4 {[%emt 0:01:28]} f6 {[%emt 0:06:38]} 15. Nc4 {[%emt 0:03:58]} Ne7 {[%emt 0:09:29]} 16. f3 {[%emt 0:00:30]} Nf5 {[%emt 0:00:30]} 17. Bf2 {[%emt 0:00:17]} Nd6 {[%emt 0:00:29]} 18. e3 {[%emt 0:02:20]} Qe7 {[%emt 0:00:59]} 19. Bd3 {[%emt 0:02:44]} Rfd8 {[%emt 0:10:37]} 20. O-O {[%emt 0:00:30]} Nxc4 {[%emt 0:00:29]} 21. Bxc4 {[%emt 0:00:07]} Ne5 {[%emt 0:00:22]} 22. Be2 {[%emt 0:01:06]} c5 {[%emt 0:00:08]} 23. Rc1 {[%emt 0:02:30]} Nc6 {[%emt 0:09:35]} 24. Rfe1 {[%emt 0:07:57]} cxd4 {[%emt 0:03:11]} 25. exd4 {[%emt 0:00:19]} Nxd4 {[%emt 0:01:13]} 26. Bxd4 {[%emt 0:11:14]} Rxc1 {[%emt 0:00:05]} 27. Rxc1 {[%emt 0:00:03]} e5 {[%emt 0:00:08]} 28. Qb4 {[%emt 0:00:22]} Qxb4 {[%emt 0:00:23]} 29. axb4 {[%emt 0:00:04]} exd4 {[%emt 0:02:23]} 30. Rc7 {[%emt 0:00:06]} d3 {[%emt 0:00:32]} 31. Bd1 {[%emt 0:01:03]} Bd5 {[%emt 0:01:27]} 32. Kf2 {[%emt 0:01:18]} a6 {[%emt 0:03:27]} 33. Ke3 {[%emt 0:00:45]} Kf8 {[%emt 0:02:10]} 34. Kd2 {[%emt 0:00:52]} Bf7 {[%emt 0:00:36]} 35. Rc6 {[%emt 0:00:50]} a5 {[%emt 0:00:34]} 36. Rxb6 {[%emt 0:00:26]} axb4 {[%emt 0:00:02]} 37. Rxb4 {[%emt 0:00:05]} Bg6 {[%emt 0:00:32]} 38. Rb7 {[%emt 0:00:50]} Rc8 {[%emt 0:00:24]} 39. f4 {[%emt 0:02:32]} Rd8 {[%emt 0:01:01]} 40. Rb5 {[%emt 0:02:06]} Ke7 {[%emt 0:00:29]} 41. Rb7+ {[%emt 0:30:57] Bf7 Rb5} Kf8 42. Rb4 {[%emt 0:00:00]} Rd7 {[%emt 0:01:02]} 43. Bf3 {[%emt 0:01:14] g5 g4 Kg7} Be4 {[%emt 0:00:00] h5} 44. h3 {[%emt 0:00:00] Kf8 Bxd3 hxg4 hxg4} Bd5 {[%emt 0:00:54]} 45. Ke3 {[%emt 0:00:00]} Ke7 {[%emt 0:00:20]} 46. Be4 {[%emt 0:00:00]} Ba2 {[%emt 0:00:29]} 47. b3 {[%emt 0:01:43] Rd1} Rb7 {[%emt 0:00:36] Kd6} 48. Rb6 {[%emt 0:00:00] Kc5 Rc6+ Kb4 Rxf6} Bxb3 {[%emt 0:00:00] Rg6 Re1+} 49. Kd4 {[%emt 0:00:36] Rd1+ Ke5 Re1} Rxb6 {[%emt 0:00:00] Ka3 Rxb3+ Kxb3} 1-0

[Event "Commonwealth Open 2019"]
[Site "Delhi"]
[Date "2019.07.03"]
[Round "5.5"]
[White "Lalith, Babu M R"]
[Black "Rathnakaran, K.."]
[Result "1-0"]
[ECO "A04"]
[WhiteElo "2571"]
[BlackElo "2338"]
[Annotator "ChessBase"]
[PlyCount "63"]
[EventDate "2019.06.30"]
[EventType "swiss"]
[EventCountry "IND"]
[SourceTitle "playchess.com"]
[Source "ChessBase"]
[SourceQuality "1"]
[TimeControl "5400+30"]

1. Nf3 {[%emt 0:18:13]} g6 {[%emt 0:00:00]} 2. d4 {[%emt 0:00:27]} Bg7 {[%emt 0:00:00]} 3. c4 {[%emt 0:00:06]} d6 {[%emt 0:00:00]} 4. Nc3 {[%emt 0:00:09]} Nd7 {[%emt 0:00:00]} 5. e4 {[%emt 0:03:47]} e5 {[%emt 0:00:07]} 6. Be2 {[%emt 0:05:33]} Ne7 {[%emt 0:00:25]} 7. h4 {[%emt 0:01:06]} exd4 {[%emt 0:00:43]} 8. Nxd4 {[%emt 0:00:06]} c6 {[%emt 0:00:07]} 9. h5 {[%emt 0:00:49]} Qb6 {[%emt 0:00:17]} 10. Nb3 {[%emt 0:00:14]} Qc7 {[%emt 0:01:48]} 11. Be3 {[%emt 0:00:53]} gxh5 {[%emt 0:01:45]} 12. Qd2 {[%emt 0:05:14]} Ne5 {[%emt 0:00:26]} 13. Bd4 {[%emt 0:00:25]} Rg8 {[%emt 0:05:30]} 14. f4 {[%emt 0:02:47]} N5g6 {[%emt 0:14:01]} 15. Bxg7 {[%emt 0:14:42]} Rxg7 {[%emt 0:00:33]} 16. O-O-O {[%emt 0:01:20]} d5 {[%emt 0:07:47]} 17. f5 {[%emt 0:01:59]} Nf4 {[%emt 0:11:25]} 18. cxd5 {[%emt 0:00:25]} cxd5 {[%emt 0:02:17]} 19. Bb5+ {[%emt 0:00:05]} Bd7 {[%emt 0:03:25]} 20. Bxd7+ {[%emt 0:00:27]} Kxd7 {[%emt 0:00:06]} 21. Rdf1 {[%emt 0:03:26]} Rg4 {[%emt 0:11:41]} 22. g3 {[%emt 0:00:09]} a5 {[%emt 0:01:26]} 23. Rxf4 {[%emt 0:00:38]} a4 {[%emt 0:01:56]} 24. Nd4 {[%emt 0:00:05]} a3 {[%emt 0:00:04]} 25. Rxg4 {[%emt 0:00:21]} hxg4 {[%emt 0:00:23]} 26. f6 {[%emt 0:00:08]} axb2+ {[%emt 0:01:20]} 27. Kb1 {[%emt 0:00:02]} Ng6 {[%emt 0:00:33] Kc1 Ne7+ Kb1 Ng6} 28. Ndb5 {[%emt 0:00:16]} Qc4 {[%emt 0:01:22]} 29. Rxh7 {[%emt 0:03:41]} Ne5 {[%emt 0:02:17]} 30. Qxd5+ {[%emt 0:00:07]} Qxd5 {[%emt 0:00:07]} 31. exd5 {[%emt 0:00:22]} b6 {[%emt 0:02:32]} 32. Kxb2 {[%emt 0:00:17]} 1-0

[Event "Commonwealth Open 2019"]
[Site "Delhi"]
[Date "2019.07.03"]
[Round "5.7"]
[White "Thipsay, Praveen M"]
[Black "Erigaisi, Arjun"]
[Result "0-1"]
[ECO "C02"]
[WhiteElo "2405"]
[BlackElo "2526"]
[Annotator "ChessBase"]
[PlyCount "96"]
[EventDate "2019.06.30"]
[EventType "swiss"]
[EventCountry "IND"]
[SourceTitle "playchess.com"]
[Source "ChessBase"]
[SourceQuality "1"]
[TimeControl "5400+30"]

1. e4 {[%emt 0:00:00]} e6 {[%emt 0:00:18]} 2. d4 {[%emt 0:00:00]} d5 {[%emt 0:00:07]} 3. e5 {[%emt 0:00:09]} c5 {[%emt 0:00:06]} 4. c3 {[%emt 0:00:05]} Nc6 {[%emt 0:00:07]} 5. Nf3 {[%emt 0:00:05]} Qb6 {[%emt 0:00:08]} 6. a3 {[%emt 0:03:24]} Nh6 {[%emt 0:01:11]} 7. b4 {[%emt 0:00:06]} cxd4 {[%emt 0:00:07]} 8. Bxh6 {[%emt 0:00:32]} gxh6 {[%emt 0:00:09]} 9. cxd4 {[%emt 0:00:12]} Bd7 {[%emt 0:00:07]} 10. Ra2 {[%emt 0:02:55]} Rc8 {[%emt 0:01:39]} 11. Be2 {[%emt 0:00:43]} Bg7 {[%emt 0:02:17]} 12. O-O {[%emt 0:19:10]} O-O {[%emt 0:01:17]} 13. Rd2 {[%emt 0:00:52]} a6 {[%emt 0:10:41]} 14. Rd3 {[%emt 0:04:43]} Qd8 {[%emt 0:10:50]} 15. Nc3 {[%emt 0:04:50]} b6 {[%emt 0:16:07]} 16. g3 {[%emt 0:10:19]} f6 {[%emt 0:14:34]} 17. exf6 {[%emt 0:00:08]} Qxf6 {[%emt 0:00:47]} 18. Ne5 {[%emt 0:01:07]} Be8 {[%emt 0:07:59]} 19. f4 {[%emt 0:00:00]} Nxd4 {[%emt 0:02:51]} 20. Rxd4 {[%emt 0:35:53]} Rxc3 {[%emt 0:00:09]} 21. Qa1 {[%emt 0:01:09]} Re3 {[%emt 0:04:22]} 22. Bxa6 {[%emt 0:00:20]} Rxe5 {[%emt 0:05:01]} 23. fxe5 {[%emt 0:00:15]} Qxe5 {[%emt 0:00:04]} 24. Rxf8+ {[%emt 0:00:57]} Kxf8 {[%emt 0:00:05]} 25. Qf1+ {[%emt 0:00:58]} Ke7 {[%emt 0:03:32]} 26. Rd1 {[%emt 0:01:01]} Bh5 {[%emt 0:01:24]} 27. Re1 {[%emt 0:03:03]} Qc3 {[%emt 0:04:06]} 28. Be2 {[%emt 0:06:32]} Bg6 {[%emt 0:00:36]} 29. Bf3 {[%emt 0:00:26]} Kd6 {[%emt 0:00:29]} 30. Rd1 {[%emt 0:00:30]} Qxa3 {[%emt 0:01:12]} 31. b5 {[%emt 0:01:22]} Qe3+ {[%emt 0:03:35]} 32. Kg2 {[%emt 0:01:40]} Bd4 {[%emt 0:03:10]} 33. Rc1 {[%emt 0:01:32]} Bd3 {[%emt 0:01:27]} 34. Qd1 {[%emt 0:00:23]} Bxb5 {[%emt 0:01:49]} 35. Qc2 {[%emt 0:00:36]} Bc4 {[%emt 0:01:03]} 36. Rd1 {[%emt 0:00:48]} e5 {[%emt 0:01:37]} 37. Rc1 {[%emt 0:00:24]} b5 {[%emt 0:00:38]} 38. Bg4 {[%emt 0:00:04]} e4 {[%emt 0:00:28]} 39. Kh3 {[%emt 0:00:28]} Qd3 {[%emt 0:00:58]} 40. Qg2 {[%emt 0:00:04]} b4 {[%emt 0:00:30]} 41. Rd1 {[%emt 0:00:01]} Qe3 {[%emt 0:00:16]} 42. Rf1 {[%emt 0:00:17]} b3 {[%emt 0:01:23]} 43. Rf7 {[%emt 0:00:10]} Qe1 {[%emt 0:00:33]} 44. Kh4 {[%emt 0:00:54]} b2 {[%emt 0:00:45]} 45. Qh3 {[%emt 0:00:04]} Qd2 {[%emt 0:00:23]} 46. Rd7+ {[%emt 0:00:58]} Kc6 {[%emt 0:00:13]} 47. Rxd5 {[%emt 0:00:03]} Bf6+ {[%emt 0:00:11]} 48. Kh5 {[%emt 0:00:03]} Qxd5+ {[%emt 0:00:05]} 0-1

[Event "Commonwealth Open 2019"]
[Site "Delhi"]
[Date "2019.07.03"]
[Round "5.8"]
[White "Swayams, Mishra"]
[Black "Kulkarni, Bhakti"]
[Result "0-1"]
[ECO "D58"]
[WhiteElo "2493"]
[BlackElo "2380"]
[Annotator "ChessBase"]
[PlyCount "115"]
[EventDate "2019.06.30"]
[EventType "swiss"]
[EventCountry "IND"]
[SourceTitle "playchess.com"]
[Source "ChessBase"]
[SourceQuality "1"]
[TimeControl "5400+30"]

1. c4 {[%emt 0:00:00]} e6 {[%emt 0:00:09]} 2. Nf3 {[%emt 0:00:00]} d5 {[%emt 0:00:32]} 3. d4 {[%emt 0:00:00]} Nf6 {[%emt 0:00:19]} 4. Nc3 {[%emt 0:00:00]} Be7 {[%emt 0:00:15]} 5. Bg5 {[%emt 0:00:05]} h6 {[%emt 0:00:13]} 6. Bh4 {[%emt 0:00:14]} O-O {[%emt 0:00:23]} 7. e3 {[%emt 0:00:09]} b6 {[%emt 0:00:46]} 8. g4 {[%emt 0:00:21]} Ne4 {[%emt 0:08:43]} 9. Bxe7 {[%emt 0:01:25]} Qxe7 {[%emt 0:00:05]} 10. h4 {[%emt 0:01:15]} g6 {[%emt 0:04:07]} 11. g5 {[%emt 0:08:31]} Nxc3 {[%emt 0:00:52]} 12. bxc3 {[%emt 0:00:05]} h5 {[%emt 0:00:17]} 13. Ne5 {[%emt 0:17:45]} Nd7 {[%emt 0:01:12]} 14. f4 {[%emt 0:00:19]} Ba6 {[%emt 0:07:34]} 15. cxd5 {[%emt 0:11:16]} Bxf1 {[%emt 0:01:12]} 16. Rxf1 {[%emt 0:06:15]} exd5 {[%emt 0:00:39]} 17. Qf3 {[%emt 0:01:40]} Nxe5 {[%emt 0:12:52]} 18. fxe5 {[%emt 0:00:25]} Qa3 {[%emt 0:00:13]} 19. Qxd5 {[%emt 0:04:21]} Qxc3+ {[%emt 0:00:12]} 20. Kf2 {[%emt 0:01:56]} c5 {[%emt 0:07:54]} 21. Rad1 {[%emt 0:05:13]} cxd4 {[%emt 0:00:46]} 22. exd4 {[%emt 0:00:50]} Rac8 {[%emt 0:05:04]} 23. Kg2 {[%emt 0:06:05]} Qc2+ {[%emt 0:07:11]} 24. Kg1 {[%emt 0:00:43]} Qc3 {[%emt 0:00:00]} 25. Kg2 {[%emt 0:00:17]} Qc2+ {[%emt 0:01:00]} 26. Kg1 {[%emt 0:00:43]} Qe2 {[%emt 0:02:49]} 27. Qg2 {[%emt 0:03:29]} Rc2 {[%emt 0:00:38]} 28. Qxe2 {[%emt 0:00:39]} Rxe2 {[%emt 0:00:03]} 29. Rf6 {[%emt 0:16:30]} Re4 {[%emt 0:03:53]} 30. Rd2 {[%emt 0:08:38]} Rxh4 {[%emt 0:02:07]} 31. d5 {[%emt 0:00:49]} Rg4+ {[%emt 0:00:17]} 32. Rg2 {[%emt 0:01:48]} Rd4 {[%emt 0:01:15]} 33. Rd6 {[%emt 0:02:08]} Re8 {[%emt 0:00:33]} 34. e6 {[%emt 0:02:08]} fxe6 {[%emt 0:00:22]} 35. Re2 {[%emt 0:00:01]} Rg4+ {[%emt 0:01:23]} 36. Kh2 {[%emt 0:00:01]} Rxg5 {[%emt 0:00:24]} 37. Rd7 {[%emt 0:00:06]} Rf5 {[%emt 0:02:51]} 38. dxe6 {[%emt 0:00:05]} Kf8 {[%emt 0:01:47]} 39. e7+ {[%emt 0:01:06]} Kf7 {[%emt 0:00:17]} 40. Rxa7 {[%emt 0:00:02]} g5 {[%emt 0:01:26]} 41. Kg3 {[%emt 0:00:14]} Rf4 {[%emt 0:02:06]} 42. Rb7 {[%emt 0:00:21]} Rf6 {[%emt 0:01:57]} 43. Re5 {[%emt 0:01:15]} Kg6 {[%emt 0:00:33]} 44. Rd7 {[%emt 0:00:25]} h4+ {[%emt 0:00:38]} 45. Kg2 {[%emt 0:00:26]} g4 {[%emt 0:03:04]} 46. Rd4 {[%emt 0:00:16]} h3+ {[%emt 0:01:06]} 47. Kg1 {[%emt 0:00:05]} Kf7 {[%emt 0:01:00]} 48. Rxg4 {[%emt 0:00:22]} Rxe7 {[%emt 0:00:18]} 49. Rxe7+ {[%emt 0:00:06]} Kxe7 {[%emt 0:00:06]} 50. Rh4 {[%emt 0:00:02]} Rg6+ {[%emt 0:01:59]} 51. Kh1 {[%emt 0:00:39]} Kd6 {[%emt 0:01:19]} 52. Rxh3 {[%emt 0:00:05]} Kc5 {[%emt 0:00:06]} 53. Rb3 {[%emt 0:02:02]} b5 {[%emt 0:00:42]} 54. a3 {[%emt 0:00:57]} Rg4 {[%emt 0:02:39]} 55. Kh2 {[%emt 0:00:02]} Kb6 {[%emt 0:00:25] Kg2 Rd4 Kf2 Ka5} 56. Rh3 {[%emt 0:00:50] Ka4 Ke1 Rd2 Rh5 Rb2 Kd1 Kxa3 Kc1} b4 {[%emt 0:08:00]} 57. Rh8 {[%emt 0:02:28] Ka2 Ra8+ Kb3 Rb8 Rh2 Rb7 Rh1+ Kd2 Rb1 Rb8 Ka2 Rb7} b3 {[%emt 0:00:00]} 58. Rb8+ {[%emt 0:00:00] Kb2 Rb7 Ra1 Rh7 Ra5 Kd3 Ka2 Rb7 b2 Kc3 b1=Q Kd4} 0-1

[Event "Commonwealth Open 2019"]
[Site "Delhi"]
[Date "2019.07.03"]
[Round "5.9"]
[White "Swapnil, S. Dhopade"]
[Black "Navalgund, Niranjan"]
[Result "1-0"]
[ECO "A05"]
[WhiteElo "2488"]
[BlackElo "2326"]
[Annotator "ChessBase"]
[PlyCount "91"]
[EventDate "2019.06.30"]
[EventType "swiss"]
[EventCountry "IND"]
[SourceTitle "playchess.com"]
[Source "ChessBase"]
[SourceQuality "1"]
[TimeControl "5400+30"]

1. Nf3 {[%emt 0:03:31]} Nf6 {[%emt 0:00:00]} 2. g3 {[%emt 0:00:05]} b6 {[%emt 0:00:00]} 3. d4 {[%emt 0:01:34]} c5 {[%emt 0:00:39]} 4. d5 {[%emt 0:04:03]} Bb7 {[%emt 0:00:22]} 5. c4 {[%emt 0:00:49]} b5 {[%emt 0:00:10]} 6. Bg2 {[%emt 0:01:54]} bxc4 {[%emt 0:06:02]} 7. Nc3 {[%emt 0:00:13]} e6 {[%emt 0:20:50]} 8. Ne5 {[%emt 0:01:01]} Qc8 {[%emt 0:11:29]} 9. O-O {[%emt 0:06:12]} Be7 {[%emt 0:04:57]} 10. Nxc4 {[%emt 0:01:42]} exd5 {[%emt 0:03:39]} 11. Nxd5 {[%emt 0:05:54]} Nxd5 {[%emt 0:00:10]} 12. Bxd5 {[%emt 0:00:06]} Bxd5 {[%emt 0:03:28]} 13. Qxd5 {[%emt 0:05:06]} Qc6 {[%emt 0:00:07]} 14. Rd1 {[%emt 0:03:29]} Qxd5 {[%emt 0:07:39]} 15. Rxd5 {[%emt 0:00:07]} Na6 {[%emt 0:08:30]} 16. Bf4 {[%emt 0:09:57]} Nb4 {[%emt 0:04:17]} 17. Nd6+ {[%emt 0:05:29]} Bxd6 {[%emt 0:00:26]} 18. Rxd6 {[%emt 0:00:02]} Ke7 {[%emt 0:08:20]} 19. Rad1 {[%emt 0:01:05]} Rhd8 {[%emt 0:00:23]} 20. a3 {[%emt 0:00:51]} Nc6 {[%emt 0:03:06]} 21. R6d5 {[%emt 0:01:02]} Nd4 {[%emt 0:02:09]} 22. Bd6+ {[%emt 0:03:26]} Ke6 {[%emt 0:00:27]} 23. Rxc5 {[%emt 0:00:27]} Kxd6 {[%emt 0:00:42]} 24. b4 {[%emt 0:00:39]} Ke7 {[%emt 0:02:14]} 25. Rxd4 {[%emt 0:00:05]} Rac8 {[%emt 0:01:53]} 26. Re5+ {[%emt 0:00:23]} Kf8 {[%emt 0:00:25]} 27. Ra5 {[%emt 0:00:05]} Rc7 {[%emt 0:01:16]} 28. Rd6 {[%emt 0:00:11]} Rb8 {[%emt 0:00:01]} 29. Rda6 {[%emt 0:00:34]} Rbb7 {[%emt 0:00:02]} 30. h4 {[%emt 0:00:44]} Ke7 {[%emt 0:01:25]} 31. h5 {[%emt 0:01:20]} h6 {[%emt 0:01:03]} 32. Kg2 {[%emt 0:02:41]} Kf8 {[%emt 0:00:02]} 33. e4 {[%emt 0:02:08]} Ke7 {[%emt 0:00:03]} 34. g4 {[%emt 0:02:55]} Kf8 {[%emt 0:04:43]} 35. Kg3 {[%emt 0:01:12]} Rc3+ {[%emt 0:00:06]} 36. f3 {[%emt 0:00:19]} Rcc7 {[%emt 0:00:06]} 37. Kf4 {[%emt 0:01:44]} Ke7 {[%emt 0:00:04]} 38. Ke3 {[%emt 0:00:56]} Rc3+ {[%emt 0:00:11]} 39. Ke2 {[%emt 0:02:28]} Rbc7 {[%emt 0:00:46]} 40. Rxa7 {[%emt 0:02:45]} Rc2+ {[%emt 0:00:25]} 41. Ke3 {[%emt 0:00:02]} R7c3+ {[%emt 0:00:20]} 42. Kf4 {[%emt 0:00:15]} Rf2 {[%emt 0:00:58]} 43. Re5+ {[%emt 0:00:07]} Kd8 {[%emt 0:01:11]} 44. Ra8+ {[%emt 0:00:05]} Kc7 {[%emt 0:00:09]} 45. Rc5+ {[%emt 0:00:03]} Rxc5 {[%emt 0:00:17]} 46. bxc5 {[%emt 0:00:01]} 1-0